bitfinex/quotes_BTCUSD_20250115
["timestamp","ask_amount","ask_price","bid_price","bid_amount"]
[1736953258057,1.89115469,99699.0,99698.0,8.48962547]
[1736953258232,1.72809985,99699.0,99698.0,8.49850547]
[1736953258432,0.50809985,99699.0,99698.0,8.5002995]
[1736953258657,0.50795415,99699.0,99698.0,8.4992995]
[1736953258856,0.48889415,99699.0,99698.0,3.4492995]
[1736953259080,0.04545153,99699.0,99698.0,3.4492995]
[1736953259281,0.04995,99715.0,99698.0,3.4492995]
[1736953259282,0.04825362,99715.0,99714.0,0.55]
[1736953259530,0.04825362,99715.0,99714.0,6.42847923]
[1736953259743,0.04825362,99715.0,99714.0,1.37847923]
[1736953259940,0.04825362,99715.0,99714.0,6.42847923]
[1736953260069,0.04825362,99715.0,99714.0,7.83736523]
[1736953260270,0.00814162,99715.0,99714.0,7.83736523]
[1736953260481,6.2e-07,99715.0,99714.0,7.86036523]
[1736953260688,0.97557713,99750.0,99748.0,0.200505]
[1736953260886,0.97557713,99750.0,99749.0,3.46879392]
[1736953261093,0.97557713,99750.0,99749.0,1.89522292]
[1736953261291,0.97557713,99750.0,99749.0,3.39522292]
[1736953261706,0.97657713,99750.0,99749.0,3.39522292]
[1736953261907,0.97707902,99750.0,99749.0,3.39522292]
[1736953262125,0.97607902,99750.0,99749.0,3.41348169]
[1736953262361,0.97707902,99750.0,99749.0,1.87519569]
[1736953262789,0.97607902,99750.0,99749.0,1.87419569]
[1736953263602,0.97607902,99750.0,99749.0,1.85593692]
[1736953264007,0.00707902,99750.0,99749.0,1.85693692]
[1736953264441,0.00607902,99750.0,99749.0,1.87418591]
[1736953264690,0.00707902,99750.0,99749.0,1.87618591]
[1736953265106,0.0059889,99750.0,99749.0,1.87418591]
[1736953265312,0.0069889,99750.0,99749.0,1.87518591]
[1736953266213,0.0069889,99750.0,99749.0,1.98098591]
[1736953266483,0.0069889,99750.0,99749.0,1.87518591]
[1736953266678,0.0069889,99750.0,99749.0,1.85693692]
[1736953266880,0.0069889,99750.0,99749.0,1.80793692]
[1736953267257,0.0069889,99750.0,99749.0,0.20371]
[1736953267664,0.0059889,99750.0,99749.0,0.20271]
[1736953267864,0.0059889,99750.0,99749.0,0.21171]
[1736953268207,0.0059889,99750.0,99749.0,1.71171]
[1736953268484,0.0059889,99750.0,99749.0,1.82493692]
[1736953268887,0.0059889,99750.0,99749.0,1.81593692]
[1736953269086,0.0059889,99750.0,99749.0,1.82381692]
[1736953269462,0.0059889,99750.0,99749.0,1.83281692]
[1736953269667,0.0059889,99750.0,99749.0,1.93313642]
[1736953269878,0.0059889,99750.0,99749.0,1.96355492]
[1736953270905,0.0059889,99750.0,99749.0,1.94667492]
[1736953271101,0.0059889,99750.0,99749.0,1.80693692]
[1736953271302,0.0059889,99750.0,99749.0,1.501]
[1736953271303,0.0119889,99750.0,99749.0,1.501]
[1736953271484,0.0199889,99750.0,99749.0,1.502]
[1736953271716,0.0139889,99750.0,99749.0,1.506989]
[1736953271929,0.0059889,99750.0,99749.0,2.1249649]
[1736953272140,0.0148427,99750.0,99749.0,1.8916659]
[1736953272354,0.0068427,99750.0,99749.0,1.7677519]
[1736953272809,0.0128427,99750.0,99749.0,1.7767519]
[1736953272981,0.0128427,99750.0,99749.0,1.7677519]
[1736953273805,0.0624427,99750.0,99749.0,1.7677519]
[1736953274015,0.0624427,99750.0,99681.0,0.32002379]
[1736953274016,0.15495731,99750.0,99734.0,0.01569934]
[1736953274233,0.14995731,99750.0,99734.0,0.01569934]
[1736953274451,0.15,99749.0,99734.0,0.01569934]
[1736953274663,0.15,99749.0,99694.0,0.00788]
[1736953274664,0.25,99747.0,99711.0,1.01603701]
[1736953274884,0.2264,99741.0,99715.0,0.040156]
[1736953275116,0.15,99739.0,99725.0,1.5]
[1736953275352,0.2264,99734.0,99693.0,0.200615]
[1736953275568,0.1,99726.0,99691.0,1.01603701]
[1736953275778,0.0496,99718.0,99691.0,1.01603701]
[1736953276003,0.10422692,99717.0,99705.0,0.040159]
[1736953276231,0.1,99715.0,99678.0,0.200645]
[1736953276477,0.10422692,99714.0,99706.0,1.5]
[1736953276693,0.1,99711.0,99706.0,1.5]
[1736953276915,0.10422692,99710.0,99706.0,1.5]
[1736953277121,0.2764,99707.0,99706.0,0.00014991]
[1736953277334,0.1,99704.0,99687.0,1.01783104]
[1736953277585,0.15,99702.0,99698.0,0.00194415]
[1736953277839,0.1,99699.0,99698.0,0.00694415]
[1736953278053,0.35422692,99699.0,99698.0,0.00694415]
[1736953278264,0.35422692,99699.0,99698.0,0.00194415]
[1736953278475,0.35422692,99699.0,99687.0,1.01783104]
[1736953278476,0.2996,99688.0,99687.0,1.01783104]
[1736953278720,0.25,99679.0,99649.0,0.00179235]
[1736953278972,0.1,99675.0,99649.0,0.00179235]
[1736953279229,0.1,99670.0,99649.0,0.00179235]
[1736953279488,0.1,99679.0,99649.0,0.00179235]
[1736953279489,0.10422692,99675.0,99649.0,0.00179235]
[1736953279692,0.10422692,99675.0,99650.0,0.334589]
[1736953279897,0.1,99680.0,99650.0,0.334589]
[1736953280114,0.10422692,99675.0,99650.0,0.34157373]
[1736953280292,0.1082,99686.0,99651.0,5.05]
[1736953280507,0.10422692,99685.0,99651.0,5.05]
[1736953280723,0.14214314,99688.0,99652.0,0.10422692]
[1736953280943,0.008,99679.0,99653.0,5.08052938]
[1736953281159,0.002,99679.0,99654.0,5.1847563]
[1736953281377,0.002,99679.0,99663.0,0.200676]
[1736953281654,0.002,99679.0,99664.0,0.52213492]
[1736953281885,4e-05,99675.0,99665.0,0.792987]
[1736953282098,4e-05,99675.0,99664.0,1.784908]
[1736953282316,0.00204,99675.0,99674.0,1.5]
[1736953282547,0.00204,99675.0,99674.0,1.60422692]
[1736953282773,4e-05,99675.0,99674.0,1.77453092]
[1736953283452,4e-05,99675.0,99674.0,1.80501244]
[1736953283655,4e-05,99675.0,99674.0,1.95501244]
[1736953283863,4e-05,99675.0,99674.0,2.07840034]
[1736953284287,4e-05,99675.0,99674.0,2.07260034]
[1736953284919,0.0764,99738.0,99698.0,0.200605]
[1736953285132,0.0764,99738.0,99698.0,1.36986893]
[1736953285397,0.0764,99738.0,99698.0,3.47978262]
[1736953285600,0.0764,99738.0,99698.0,4.56533662]
[1736953286168,0.00634081,99750.0,99698.0,4.73135765]
[1736953286383,0.00634081,99750.0,99698.0,4.75435765]
[1736953286696,0.00634081,99750.0,99749.0,0.200503]
[1736953287021,0.00684062,99750.0,99749.0,1.32076693]
[1736953287357,0.00684062,99750.0,99749.0,2.51603701]
[1736953287563,0.00684062,99750.0,99696.0,0.02071915]
[1736953287564,0.00684062,99750.0,99739.0,1.01603701]
[1736953287776,0.1,99748.0,99728.0,1.01603701]
[1736953287961,0.1,99739.0,99728.0,1.01603701]
[1736953288205,0.1,99739.0,99718.0,1.01603701]
[1736953288413,0.1764,99746.0,99719.0,0.277883]
[1736953288644,0.1764,99746.0,99720.0,0.200561]
[1736953288851,0.1,99745.0,99739.0,0.009]
[1736953289250,0.0764,99746.0,99729.0,1.01603701]
[1736953289696,0.1,99741.0,99729.0,1.01603701]
[1736953290284,0.0764,99746.0,99728.0,0.007]
[1736953290285,0.1,99736.0,99728.0,0.007]
[1736953290715,0.1,99728.0,99708.0,1.01603701]
[1736953290933,0.1,99726.0,99708.0,1.01603701]
[1736953291139,0.1,99718.0,99694.0,1.05613701]
[1736953291358,0.1,99715.0,99694.0,1.05613701]
[1736953291567,0.0764,99714.0,99694.0,1.05613701]
[1736953291774,0.0764,99714.0,99695.0,0.10422692]
[1736953291953,0.0764,99714.0,99696.0,0.101114]
[1736953292202,0.0764,99714.0,99696.0,0.301722]
[1736953292428,0.0764,99714.0,99697.0,1.5]
[1736953292666,0.1,99709.0,99697.0,1.5]
[1736953292929,0.1,99705.0,99697.0,1.5]
[1736953293112,0.1,99704.0,99694.0,1.06513701]
[1736953293349,0.1,99702.0,99694.0,0.0491]
[1736953293567,0.1,99688.0,99674.0,1.01603701]
[1736953293781,0.15382692,99701.0,99684.0,0.0001505]
[1736953293782,0.1,99686.0,99684.0,0.0001505]
[1736953293990,0.0496,99701.0,99684.0,1.12041443]
[1736953294232,0.0764,99714.0,99702.0,0.200597]
[1736953294449,0.0791,99734.0,99721.0,0.200558]
[1736953294666,0.1,99748.0,99722.0,1.386966]
[1736953294877,0.00654081,99750.0,99745.0,1.5]
[1736953295080,0.00654081,99750.0,99745.0,2.51603701]
[1736953295300,0.00654081,99750.0,99745.0,1.01603701]
[1736953296145,0.00704062,99750.0,99732.0,1.01603701]
[1736953296352,0.00704062,99750.0,99739.0,0.200522]
[1736953296591,0.00704062,99750.0,99734.0,0.200533]
[1736953297075,0.00704062,99750.0,99732.0,1.12026393]
[1736953297278,0.00704062,99750.0,99745.0,0.006]
[1736953297279,0.1,99748.0,99745.0,0.006]
[1736953297698,0.1,99744.0,99732.0,1.01603701]
[1736953297914,0.1,99740.0,99734.0,0.001]
[1736953298131,0.1,99737.0,99732.0,1.01603701]
[1736953299158,0.1,99733.0,99732.0,1.01603701]
[1736953299363,0.1,99732.0,99721.0,1.01603701]
[1736953299778,0.00904062,99750.0,99684.0,0.29962059]
[1736953299779,0.1,99722.0,99703.0,1.01603701]
[1736953299992,0.0791,99730.0,99715.0,0.20057]
[1736953300200,0.0791,99730.0,99711.0,0.200579]
[1736953300405,0.0791,99730.0,99712.0,0.392004]
[1736953300609,0.1,99726.0,99711.0,0.200579]
[1736953301107,0.0791,99730.0,99704.0,0.10422692]
[1736953301282,0.0791,99730.0,99711.0,0.009]
[1736953301513,0.0791,99730.0,99705.0,0.63929963]
[1736953301514,0.1,99723.0,99712.0,0.13715063]
[1736953301724,0.0791,99730.0,99713.0,0.49586863]
[1736953301929,0.1,99735.0,99721.0,0.200558]
[1736953302139,0.1,99739.0,99727.0,0.200547]
[1736953302347,0.1,99739.0,99728.0,0.115332]
[1736953302562,0.1,99739.0,99725.0,0.283218]
[1736953302774,0.1,99739.0,99726.0,0.03046994]
[1736953302984,0.1,99739.0,99719.0,0.03046994]
[1736953303193,0.1,99739.0,99729.0,1.5]
[1736953303599,0.103,99739.0,99729.0,1.5]
[1736953304238,0.1,99739.0,99729.0,1.5]
[1736953304485,0.1,99738.0,99729.0,1.5]
[1736953304698,0.1,99730.0,99729.0,1.5]
[1736953304904,0.1,99732.0,99707.0,0.200587]
[1736953304905,0.1,99728.0,99719.0,1.01603701]
[1736953305114,0.1,99728.0,99710.0,1.01603701]
[1736953305115,0.1,99714.0,99710.0,1.01603701]
[1736953305319,0.10422692,99727.0,99689.0,0.50024259]
[1736953305320,0.1,99706.0,99698.0,1.01603701]
[1736953305523,0.1,99700.0,99699.0,0.03052254]
[1736953305722,0.1,99700.0,99698.0,1.01603701]
[1736953306255,0.1,99699.0,99698.0,1.01603701]
[1736953306879,0.1,99699.0,99698.0,1.02503701]
[1736953307105,0.1,99704.0,99698.0,1.05555898]
[1736953307313,0.1,99709.0,99698.0,1.01603701]
[1736953307515,0.1,99705.0,99699.0,0.0305353]
[1736953308012,0.0791,99712.0,99699.0,0.0305353]
[1736953308220,0.1,99722.0,99700.0,0.50287892]
[1736953308418,0.1,99721.0,99710.0,0.20058]
[1736953308622,0.1,99721.0,99711.0,0.1540343]
[1736953308820,0.1,99721.0,99710.0,1.01603701]
[1736953308821,0.1,99721.0,99712.0,0.1918433]
[1736953309049,0.1,99721.0,99713.0,0.1918433]
[1736953309259,0.1,99715.0,99714.0,0.0305353]
[1736953309464,0.1,99712.0,99711.0,0.0305353]
[1736953309668,0.1,99711.0,99710.0,1.01603701]
[1736953309870,0.1,99711.0,99699.0,0.018]
[1736953310084,0.1,99711.0,99703.0,1.01603701]
[1736953310266,0.0796395,99730.0,99703.0,1.01603701]
[1736953310267,0.1,99704.0,99703.0,1.01603701]
[1736953310718,0.1,99704.0,99693.0,1.01603701]
[1736953311756,0.09980695,99698.0,99693.0,1.01603701]
[1736953311971,4e-05,99700.0,99698.0,0.200605]
[1736953312184,4e-05,99700.0,99699.0,0.20758649]
[1736953312396,4e-05,99700.0,99699.0,1.67595449]
[1736953312601,4e-05,99700.0,99699.0,1.53050449]
[1736953313141,4e-05,99700.0,99699.0,1.64226449]
[1736953313347,4e-05,99700.0,99699.0,1.63785149]
[1736953313548,0.09984695,99700.0,99699.0,1.53050449]
[1736953313772,0.09984695,99700.0,99699.0,1.509]
[1736953313934,0.09984695,99700.0,99699.0,0.009]
[1736953314377,0.09984695,99700.0,99697.0,0.00179382]
[1736953314587,0.09980695,99698.0,99697.0,0.00179382]
[1736953314782,0.18150695,99698.0,99697.0,0.00179382]
[1736953315387,0.28150695,99698.0,99697.0,0.00179382]
[1736953315557,0.09980695,99698.0,99697.0,0.00179382]
[1736953315757,4e-05,99700.0,99697.0,0.18330655]
[1736953315963,4e-05,99700.0,99698.0,0.63160173]
[1736953316164,4e-05,99700.0,99699.0,1.68797573]
[1736953316355,4e-05,99700.0,99699.0,1.79220265]
[1736953316550,4e-05,99700.0,99699.0,1.80120265]
[1736953316794,4e-05,99700.0,99699.0,1.79220265]
[1736953317795,0.00504,99700.0,99699.0,1.79320265]
[1736953318014,4e-05,99700.0,99699.0,1.79220265]
[1736953318667,4e-05,99700.0,99699.0,1.80120265]
[1736953318846,8e-05,99700.0,99699.0,1.80120265]
[1736953319077,2.582e-05,99700.0,99699.0,1.80120265]
[1736953319404,6.582e-05,99700.0,99699.0,1.81020265]
[1736953319707,2.582e-05,99700.0,99699.0,1.81020265]
[1736953319859,0.09979277,99707.0,99700.0,0.200601]
[1736953320066,0.09979277,99707.0,99701.0,0.19158173]
[1736953320283,0.09979277,99707.0,99702.0,0.34417573]
[1736953320483,0.09979277,99707.0,99703.0,0.26984773]
[1736953320681,0.09979277,99707.0,99704.0,0.13546773]
[1736953320936,0.09979277,99724.0,99705.0,0.24027665]
[1736953321143,0.09979277,99728.0,99706.0,1.34002873]
[1736953321372,0.09979277,99729.0,99725.0,0.200549]
[1736953321495,0.09979277,99729.0,99726.0,1.53052973]
[1736953321709,0.09979277,99728.0,99727.0,0.03052973]
[1736953322117,0.09979277,99727.0,99726.0,0.03059945]
[1736953322340,0.09979277,99727.0,99726.0,1.53059945]
[1736953322546,0.09979277,99727.0,99726.0,0.03059945]
[1736953322755,0.09979277,99727.0,99714.0,1.01603701]
[1736953322756,0.09979277,99715.0,99714.0,1.01603701]
[1736953322968,0.1,99707.0,99706.0,0.22370705]
[1736953323176,0.1,99707.0,99706.0,0.25435765]
[1736953323177,0.30401969,99707.0,99706.0,0.25435765]
[1736953323409,0.30401969,99707.0,99706.0,0.22370705]
[1736953323610,0.32185152,99707.0,99706.0,0.22370705]
[1736953323824,0.1,99698.0,99686.0,1.01603701]
[1736953324030,0.1,99680.0,99675.0,1.01603701]
[1736953324228,0.09979277,99678.0,99676.0,0.03066332]
[1736953324639,0.09979277,99678.0,99677.0,0.200648]
[1736953324840,0.09979277,99684.0,99677.0,0.03066332]
[1736953325045,0.09979277,99683.0,99678.0,0.23130932]
[1736953325248,0.09979277,99697.0,99680.0,0.200642]
[1736953325447,0.10004,99730.0,99707.0,0.200586]
[1736953325448,0.09979277,99710.0,99707.0,0.200586]
[1736953325694,0.09979277,99710.0,99708.0,1.53066332]
[1736953326026,0.19979277,99709.0,99708.0,1.5]
[1736953326195,0.19979277,99709.0,99708.0,1.53043601]
[1736953326399,0.19979277,99709.0,99708.0,0.03043601]
[1736953326602,0.1,99708.0,99697.0,0.006]
[1736953326805,0.09979277,99699.0,99698.0,0.03047407]
[1736953327016,0.09979277,99709.0,99708.0,0.009]
[1736953327281,0.09979277,99700.0,99699.0,0.03047407]
[1736953327396,0.09979277,99700.0,99698.0,0.03049678]
[1736953327602,0.09979277,99700.0,99699.0,0.03049678]
[1736953328042,0.09979277,99700.0,99690.0,0.03049678]
[1736953328245,0.09979277,99693.0,99690.0,0.14923278]
[1736953328447,0.09979277,99698.0,99691.0,0.21562378]
[1736953328604,0.09979277,99693.0,99692.0,0.16125978]
[1736953328794,0.09979277,99693.0,99692.0,0.03049678]
[1736953329255,0.09979277,99693.0,99689.0,0.0001505]
[1736953329256,0.19979277,99690.0,99689.0,0.0001505]
[1736953329833,0.19979277,99690.0,99689.0,0.03065764]
[1736953330239,0.19979277,99690.0,99689.0,0.0001505]
[1736953331109,0.47701969,99690.0,99689.0,0.0091505]
[1736953331317,0.65571969,99690.0,99689.0,0.0091505]
[1736953331505,0.65571969,99690.0,99689.0,0.0171505]
[1736953331705,0.75571969,99690.0,99652.0,0.29758429]
[1736953331921,0.47279277,99678.0,99652.0,0.29758429]
[1736953332133,0.34979277,99665.0,99652.0,0.29758429]
[1736953332373,0.45401969,99665.0,99625.0,0.29758429]
[1736953332794,0.57701969,99665.0,99625.0,0.29758429]
[1736953333002,0.34979277,99650.0,99625.0,0.29758429]
[1736953333212,0.45401969,99650.0,99617.0,1.5]
[1736953333422,0.45401969,99650.0,99601.0,0.29758429]
[1736953333423,0.09979277,99617.0,99601.0,0.29758429]
[1736953333635,0.09979277,99602.0,99601.0,0.29758429]
[1736953333846,0.09979277,99602.0,99601.0,1.79758429]
[1736953334272,0.09979277,99602.0,99599.0,0.0017934]
[1736953334273,0.19994235,99602.0,99599.0,0.0017934]
[1736953334498,0.42718346,99600.0,99599.0,0.0017934]
[1736953334757,0.43141038,99600.0,99599.0,0.0017934]
[1736953334971,0.17718346,99600.0,99599.0,0.0017934]
[1736953335101,0.14577617,99600.0,99599.0,0.0017934]
[1736953335315,0.00014958,99602.0,99599.0,0.0017934]
[1736953335533,0.14577617,99600.0,99599.0,0.01285677]
[1736953336166,0.14577617,99600.0,99599.0,0.00085457]
[1736953336798,0.00014958,99602.0,99599.0,0.00985457]
[1736953337007,0.00014958,99602.0,99599.0,0.013]
[1736953337201,0.00014958,99602.0,99599.0,0.004]
[1736953337647,0.00014958,99602.0,99599.0,0.009]
[1736953337788,0.00014958,99602.0,99599.0,0.005]
[1736953338129,0.00014958,99602.0,99600.0,0.30502992]
[1736953338351,0.00014958,99602.0,99600.0,0.74205392]
[1736953338612,0.00014958,99602.0,99600.0,0.30480492]
[1736953338831,0.00114958,99602.0,99599.0,0.007]
[1736953339041,0.00114958,99602.0,99600.0,0.200803]
[1736953339244,0.00114958,99602.0,99599.0,0.016]
[1736953339445,0.00114958,99602.0,99601.0,0.10422692]
[1736953339654,0.00114958,99602.0,99601.0,1.03207192]
[1736953339855,0.00014958,99602.0,99601.0,0.69271192]
[1736953340062,0.00014958,99602.0,99601.0,0.71571192]
[1736953340272,5.8e-07,99602.0,99601.0,1.09588883]
[1736953340475,0.0787,99670.0,99645.0,0.200711]
[1736953340676,0.18292692,99670.0,99646.0,0.295487]
[1736953340874,0.0787,99670.0,99647.0,0.168335]
[1736953341091,0.0787,99670.0,99648.0,0.200706]
[1736953341304,0.00014994,99672.0,99660.0,0.200682]
[1736953341516,0.00014994,99672.0,99661.0,0.86435592]
[1736953341730,0.00014994,99672.0,99662.0,0.720017]
[1736953341936,0.00014994,99672.0,99652.0,0.200696]
[1736953342080,0.00014994,99672.0,99653.0,0.200694]
[1736953342292,0.00014994,99672.0,99669.0,1.5]
[1736953342753,0.00014994,99672.0,99648.0,0.200706]
[1736953342953,0.00014994,99672.0,99649.0,0.32561192]
[1736953343203,0.00018994,99672.0,99665.0,0.20067]
[1736953343405,0.00018994,99672.0,99666.0,0.673643]
[1736953343573,0.00018994,99672.0,99662.0,0.874422]
[1736953343777,0.00022994,99672.0,99669.0,0.009]
[1736953344020,0.00022994,99672.0,99670.0,1.5]
[1736953344223,0.00026994,99672.0,99670.0,1.5]
[1736953344786,0.00030994,99672.0,99670.0,1.5]
[1736953345218,0.00034994,99672.0,99670.0,1.5]
[1736953345390,0.00038994,99672.0,99670.0,1.5]
[1736953345997,0.00038994,99672.0,99670.0,1.509]
[1736953346243,0.00038994,99672.0,99661.0,1.01603701]
[1736953346436,0.10422692,99671.0,99629.0,0.200743]
[1736953346646,0.20422692,99671.0,99670.0,0.009]
[1736953346873,0.20422692,99671.0,99626.0,0.2008]
[1736953346874,0.1,99662.0,99624.0,1.01603701]
[1736953347069,0.1,99659.0,99624.0,1.12026393]
[1736953347279,0.15,99652.0,99615.0,0.200772]
[1736953347494,0.1,99645.0,99616.0,0.100726]
[1736953347695,0.10422692,99644.0,99616.0,0.20077]
[1736953347901,0.0465,99670.0,99617.0,0.83726792]
[1736953348110,0.0787,99673.0,99634.0,0.002]
[1736953348316,0.0465,99687.0,99636.0,0.30495692]
[1736953348526,0.0465,99687.0,99655.0,0.200691]
[1736953348745,0.25,99686.0,99670.0,0.009]
[1736953348950,0.0465,99687.0,99670.0,0.009]
[1736953349158,0.0787,99689.0,99666.0,0.20067]
[1736953349380,0.1,99686.0,99651.0,1.01603701]
[1736953349579,0.1,99685.0,99652.0,0.42272]
[1736953349787,0.1,99684.0,99670.0,0.004]
[1736953350052,0.10422692,99671.0,99670.0,0.004]
[1736953350248,0.10422692,99671.0,99670.0,0.009]
[1736953350470,0.1,99669.0,99637.0,1.01603701]
[1736953350677,0.0787,99689.0,99647.0,0.10422692]
[1736953350884,0.1787,99689.0,99648.0,1.32483603]
[1736953351092,0.0787,99689.0,99662.0,0.401356]
[1736953351344,0.0787,99689.0,99663.0,0.41005492]
[1736953351548,0.0787,99689.0,99670.0,0.005]
[1736953351748,0.09990994,99683.0,99670.0,0.005]
[1736953351960,0.09990994,99680.0,99670.0,0.005]
[1736953352154,0.10422692,99679.0,99670.0,0.005]
[1736953352364,0.09621445,99689.0,99670.0,0.005]
[1736953352565,0.09990994,99687.0,99670.0,0.005]
[1736953352834,0.10422692,99686.0,99670.0,0.005]
[1736953353007,0.10422692,99686.0,99668.0,1.01603701]
[1736953353836,0.10422692,99686.0,99670.0,0.009]
[1736953354035,0.10422692,99686.0,99668.0,1.01603701]
[1736953354036,0.09990994,99684.0,99668.0,1.01603701]
[1736953354238,0.10422692,99683.0,99670.0,0.005]
[1736953354593,0.0008551,99671.0,99670.0,0.005]
[1736953354796,0.0008551,99671.0,99658.0,1.01603701]
[1736953354797,0.0005551,99671.0,99658.0,1.01603701]
[1736953355000,0.0005551,99671.0,99668.0,0.004]
[1736953355175,0.0005551,99671.0,99668.0,1.02003701]
[1736953355538,0.0005551,99671.0,99668.0,1.02903701]
[1736953355950,0.0005551,99671.0,99668.0,1.02003701]
[1736953356372,0.0005551,99671.0,99668.0,1.01603701]
[1736953356576,0.0005551,99671.0,99670.0,0.004]
[1736953356774,0.09990994,99688.0,99670.0,0.004]
[1736953356976,0.09990994,99686.0,99670.0,0.004]
[1736953357156,0.09990994,99677.0,99658.0,0.00014994]
[1736953357351,0.09990994,99669.0,99668.0,0.006]
[1736953357640,0.20413686,99669.0,99668.0,0.006]
[1736953357962,0.10422692,99669.0,99658.0,0.00014994]
[1736953358166,0.10422692,99668.0,99658.0,0.00014994]
[1736953358317,0.18260994,99659.0,99658.0,0.00014994]
[1736953358519,0.28683686,99659.0,99658.0,0.00014994]
[1736953358720,0.01805597,99670.0,99658.0,0.00014994]
[1736953358926,0.0466,99672.0,99658.0,0.00014994]
[1736953359122,0.0827,99674.0,99659.0,0.200684]
[1736953359343,0.0827,99674.0,99658.0,0.00014994]
[1736953359564,0.09990994,99671.0,99658.0,0.00014994]
[1736953359775,0.0827,99674.0,99668.0,0.007]
[1736953359993,0.10422692,99670.0,99668.0,0.007]
[1736953360202,0.20413686,99670.0,99658.0,0.00014994]
[1736953360382,0.09990994,99662.0,99659.0,0.009]
[1736953360613,0.0827,99674.0,99659.0,0.009]
[1736953360990,0.22920994,99689.0,99660.0,0.189041]
[1736953361194,4e-05,99670.0,99661.0,0.200679]
[1736953361397,4e-05,99670.0,99668.0,0.005]
[1736953361556,0.10422692,99688.0,99671.0,0.00044]
[1736953361770,0.15,99687.0,99671.0,1.01647701]
[1736953361959,0.10422692,99686.0,99671.0,1.01647701]
[1736953362162,0.10410619,99686.0,99671.0,1.01647701]
[1736953362363,0.09990994,99697.0,99685.0,1.5]
[1736953362560,0.09990994,99695.0,99671.0,1.01647701]
[1736953362774,0.09990994,99688.0,99671.0,1.01647701]
[1736953362977,0.20413686,99687.0,99671.0,1.01647701]
[1736953363238,0.09990994,99685.0,99682.0,1.5]
[1736953363354,0.09990994,99709.0,99682.0,1.5]
[1736953363553,0.0835548,99702.0,99682.0,1.01603701]
[1736953363762,0.0008548,99702.0,99689.0,0.200623]
[1736953363971,0.0008548,99702.0,99693.0,0.200614]
[1736953364170,0.0008548,99702.0,99701.0,1.5]
[1736953364650,0.0008548,99702.0,99701.0,1.608905]
[1736953364979,0.00100463,99702.0,99701.0,1.608905]
[1736953365646,0.00104463,99702.0,99701.0,1.617905]
[1736953366235,0.00104463,99702.0,99701.0,1.516]
[1736953366439,0.00108463,99702.0,99701.0,1.516]
[1736953366872,0.00112463,99702.0,99701.0,1.516]
[1736953367277,0.00116463,99702.0,99701.0,1.516]
[1736953367655,0.00120463,99702.0,99701.0,0.016]
[1736953367872,0.00124463,99702.0,99701.0,0.016]
[1736953368071,0.00124463,99702.0,99701.0,1.03203701]
[1736953368275,0.00128463,99702.0,99701.0,1.03203701]
[1736953368700,0.00132463,99702.0,99701.0,1.03203701]
[1736953369052,0.10559155,99702.0,99701.0,0.016]
[1736953369371,0.12227972,99702.0,99701.0,0.016]
[1736953369580,0.12231972,99702.0,99701.0,0.016]
[1736953369787,0.12231972,99702.0,99681.0,1.01603701]
[1736953369992,0.10422692,99701.0,99682.0,0.286379]
[1736953370204,0.10422692,99701.0,99681.0,1.01603701]
[1736953370610,0.15,99700.0,99681.0,1.01603701]
[1736953370819,0.10422692,99699.0,99681.0,1.01603701]
[1736953371217,0.10422692,99699.0,99682.0,0.174391]
[1736953371440,0.00152463,99702.0,99688.0,0.200624]
[1736953371648,0.00152463,99702.0,99689.0,0.5427506]
[1736953371856,0.00152463,99702.0,99691.0,0.200619]
[1736953372059,0.00152463,99702.0,99692.0,0.3758066]
[1736953372263,0.00152463,99702.0,99701.0,0.009]
[1736953372723,0.00152463,99702.0,99701.0,0.0303556]
[1736953372927,0.00152463,99702.0,99694.0,0.0303556]
[1736953373135,0.00252463,99702.0,99694.0,0.4058306]
[1736953373374,0.00152463,99702.0,99695.0,0.3890346]
[1736953373531,0.00152463,99702.0,99696.0,0.3987466]
[1736953373755,0.00152463,99702.0,99701.0,0.00909006]
[1736953373962,0.00152463,99702.0,99701.0,1.03312707]
[1736953374220,0.00152463,99702.0,99701.0,1.65208667]
[1736953374423,0.00152463,99702.0,99701.0,2.96923767]
[1736953375357,0.00152463,99702.0,99701.0,3.06546459]
[1736953375767,0.00152463,99702.0,99701.0,3.21546459]
[1736953375976,5.3e-06,99702.0,99701.0,3.21546459]
[1736953376184,5.3e-06,99702.0,99701.0,3.20646459]
[1736953376441,5.3e-06,99702.0,99701.0,3.21546459]
[1736953376860,5.3e-06,99702.0,99701.0,3.20646459]
[1736953377072,5.3e-06,99702.0,99701.0,3.20746459]
[1736953377246,0.0008541,99713.0,99712.0,0.200577]
[1736953377452,0.0008541,99713.0,99712.0,2.65528953]
[1736953377840,0.0008541,99713.0,99712.0,2.55097867]
[1736953378051,0.0008541,99713.0,99712.0,3.59671067]
[1736953378417,0.0008541,99713.0,99712.0,3.70093759]
[1736953379254,0.0008541,99713.0,99712.0,3.71601022]
[1736953379460,0.0008541,99713.0,99712.0,3.71701022]
[1736953379675,0.0008541,99713.0,99712.0,3.5968933]
[1736953380192,0.0008541,99713.0,99712.0,1.04639261]
[1736953380451,0.0008541,99713.0,99696.0,0.200607]
[1736953380452,0.10508102,99713.0,99701.0,1.01603701]
[1736953380652,0.0008541,99713.0,99712.0,0.001]
[1736953380857,0.10508102,99713.0,99712.0,0.001]
[1736953381651,0.10508102,99713.0,99689.0,0.00014983]
[1736953381859,0.10422692,99712.0,99690.0,0.45666146]
[1736953382071,0.10422692,99712.0,99691.0,0.15361046]
[1736953382284,0.10422692,99712.0,99692.0,1.66205246]
[1736953382487,0.20413686,99712.0,99693.0,0.03036346]
[1736953382696,0.10422692,99712.0,99689.0,0.00014983]
[1736953383328,0.0008541,99713.0,99695.0,0.20061]
[1736953383539,0.0008541,99713.0,99705.0,0.20059]
[1736953383759,0.0008541,99713.0,99712.0,1.70066706]
[1736953383979,0.0008541,99713.0,99712.0,2.45188674]
[1736953384182,0.0008541,99713.0,99712.0,1.96787274]
[1736953384386,0.0008541,99713.0,99712.0,1.70398568]
[1736953384588,0.0459,99735.0,99712.0,1.53035468]
[1736953384793,0.10422692,99729.0,99713.0,0.03035468]
[1736953386453,0.10422692,99729.0,99713.0,0.03935468]
[1736953386660,0.10422692,99729.0,99714.0,0.03035468]
[1736953386873,0.10422692,99729.0,99713.0,0.015]